fUST/lending_fUST_20240830
["ID","MTS","AMOUNT","RATE_DAILY","PERIOD"]
[336636901,1724988640276,-3907.85057719,0.000238,2]
[336636902,1724988640286,-500.0,0.00023832,5]
[336636903,1724988640296,-500.0,0.00023833,5]
[336636904,1724988640307,-500.0,0.00024106,5]
[336636905,1724988640318,-500.0,0.00024107,5]
[336636906,1724988640328,-500.0,0.0002438,5]
[336636907,1724988640338,-500.0,0.00024381,5]
[336636908,1724988640348,-500.0,0.00024654,5]
[336636909,1724988640359,-500.0,0.00024655,5]
[336636910,1724988640370,-380.0,0.00024658,2]
[336636911,1724988640380,-200.0,0.00024658,15]
[336636912,1724988640392,-300.754744,0.00024859,2]
[336636913,1724988640403,-500.0,0.00024928,5]
[336636914,1724988640413,-500.0,0.00024929,5]
[336636915,1724988640424,-500.0,0.00024999,2]
[336636916,1724988640434,-614.22146152,0.00024999,2]
[336636917,1724988640445,-198.69476792,0.00024999,2]
[336636918,1724988640456,-262.76663618,0.00024999,2]
[336636919,1724988640468,-500.0,0.00024999,2]
[336636920,1724988640480,-500.0,0.00024999,2]
[336636921,1724988640493,-439.6756935,0.00024999,2]
[336636922,1724988640503,-500.0,0.00024999,2]
[336636923,1724988640513,-500.0,0.00024999,2]
[336636924,1724988640524,-500.0,0.00024999,2]
[336636925,1724988640533,-180.59174044,0.00025,5]
[336636926,1724988640543,-154.74790589,0.00025,60]
[336636928,1724988640553,-398507.21437827,0.00025,2]
[336636931,1724988640568,-1294.69518875,0.00025,2]
[336636933,1724988640580,-254.63533274,0.00025,2]
[336636935,1724988640591,-2938.94371181,0.00025,2]
[336636943,1724988640760,-474.25173268,0.00025,2]
[336636944,1724988640771,-598.0205773,0.00025,2]
[336636945,1724988640957,-44181.83860816,0.00025,2]
[336636946,1724988640969,-512.37431689,0.00025,2]
[336636965,1724988643773,-6029.39865856,0.00025,2]
[336636966,1724988644035,-394.05286435,0.00025,2]
[336636980,1724988646761,-21974.65826622,0.00025,2]
[336637039,1724989617132,-212.655126,0.00014247,2]
[336637040,1724989617156,-135.41795293,0.00014247,2]
[336637066,1724989758100,-39.12700007,0.00014247,2]
[336637116,1724989838615,-318.499471,0.0001863,2]
[336637117,1724989838627,-191.286885,0.00023844,2]
[336637118,1724989838638,-296.58426174,0.00024,30]
[336637119,1724989838679,-1703.41573826,0.00024,30]
[336637120,1724989838689,-2014.0,0.00024,30]
[336637121,1724989838699,-1641.0,0.00024,30]
[336637122,1724989838711,-465.2201906,0.00024412,2]
[336637123,1724989838721,-200.0,0.00024658,15]
[336637124,1724989838732,-4410.36802704,0.00024728,2]
[336637125,1724989838743,-318.499471,0.00024859,2]
[336637126,1724989838753,-231.49667548,0.00024899,2]
[336637128,1724989838764,-500.0,0.00024968,5]
[336637130,1724989838773,-506.12486987,0.00024968,5]
[336637132,1724989838782,-500.0,0.00024968,5]
[336637133,1724989838792,-500.0,0.00024968,5]
[336637135,1724989838803,-500.0,0.00024968,2]
[336637137,1724989838814,-500.0,0.00024968,2]
[336637139,1724989838824,-500.0,0.00024968,2]
[336637140,1724989838833,-500.0,0.00024968,2]
[336637141,1724989838843,-500.0,0.00024968,2]
[336637142,1724989838853,-500.0,0.00024968,2]
[336637143,1724989838864,-500.0,0.00024968,2]
[336637144,1724989838874,-500.0,0.00024968,2]
[336637145,1724989838884,-500.0,0.00024968,2]
[336637147,1724989838895,-500.0,0.00024968,2]
[336637149,1724989838905,-500.0,0.00024968,2]
[336637151,1724989838915,-500.0,0.00024968,2]
[336637153,1724989838926,-500.0,0.00024968,2]
[336637155,1724989838937,-459.74781199,0.00024968,2]
[336637156,1724989838949,-413.65139629,0.00024979,5]
[336637157,1724989838959,-401.63712974,0.00024979,5]
[336637158,1724989838969,-500.0,0.00024979,5]
[336637159,1724989838979,-500.0,0.00024979,5]
[336637160,1724989838988,-500.0,0.00024979,5]
[336637161,1724989838999,-392.71922145,0.00024979,5]
[336637162,1724989839011,-500.0,0.00024979,5]
[336637163,1724989839022,-242.73,0.00024979,5]
[336637164,1724989839031,-517.16,0.00024979,5]
[336637165,1724989839041,-262.76663618,0.00024979,2]
[336637166,1724989839050,-500.0,0.00024979,2]
[336637167,1724989839061,-198.69476792,0.00024979,2]
[336637168,1724989839070,-500.0,0.00024979,2]
[336637169,1724989839080,-614.22146152,0.00024979,2]
[336637170,1724989839092,-500.0,0.00024979,2]
[336637171,1724989839102,-500.0,0.00024979,2]
[336637172,1724989839112,-500.0,0.00024979,2]
[336637173,1724989839121,-500.0,0.00024979,2]
[336637174,1724989839131,-439.6756935,0.00024979,2]
[336637175,1724989839141,-112459.31,0.0002499,3]
[336637176,1724989839151,-1099.77739786,0.00024999,2]
[336637177,1724989839162,-1525.05468648,0.00025,5]
[336637178,1724989839173,-161402.62530117,0.00025,2]
[336637179,1724989839183,-10739.34804375,0.00025,2]
[336637180,1724989839193,-49619.27717451,0.00025,2]
[336637181,1724989839203,-1094.70645642,0.00025,4]
[336637182,1724989839213,-150.112233,0.00025,5]
[336637183,1724989839222,-1531.20356766,0.00025,2]
[336637184,1724989839232,-361.18348088,0.0002509,5]
[336637185,1724989839242,-224541.28385581,0.0002509,2]
[336637186,1724989839252,-476.31,0.000251,14]
[336637187,1724989839262,-1109.53,0.000251,14]
[336637188,1724989839272,-691.66,0.000251,7]
[336637189,1724989839281,-21330.84,0.000251,14]
[336637190,1724989839291,-500.0,0.00025242,5]
[336637191,1724989839302,-500.0,0.00025242,5]
[336637192,1724989839313,-500.0,0.00025242,5]
[336637193,1724989839325,-500.0,0.00025253,5]
[336637194,1724989839334,-500.0,0.00025253,5]
[336637195,1724989839344,-500.0,0.00025253,5]
[336637196,1724989839354,-517.16,0.00025253,5]
[336637197,1724989839363,-900.0,0.00025469,3]
[336637198,1724989839374,-500.0,0.00025516,5]
[336637199,1724989839383,-500.0,0.00025516,5]
[336637200,1724989839392,-500.0,0.00025516,5]
[336637201,1724989839403,-500.0,0.00025527,5]
[336637202,1724989839414,-500.0,0.00025527,5]
[336637203,1724989839424,-500.0,0.00025527,5]
[336637204,1724989839434,-517.16,0.00025527,5]
[336637205,1724989839444,-150.112233,0.000256,7]
[336637206,1724989839453,-465.01100953,0.00025632,2]
[336637207,1724989839463,-500.0,0.0002579,5]
[336637208,1724989839474,-500.0,0.0002579,5]
[336637209,1724989839484,-500.0,0.0002579,5]
[336637210,1724989839495,-500.0,0.00025801,5]
[336637211,1724989839504,-500.0,0.00025801,5]
[336637212,1724989839515,-500.0,0.00025801,5]
[336637213,1724989839525,-517.16,0.00025801,5]
[336637214,1724989839535,-467.12357248,0.0002598,2]
[336637215,1724989839545,-500.0,0.00026,120]
[336637216,1724989839555,-368.2777589,0.00026,2]
[336637217,1724989839565,-500.0,0.00026064,5]
[336637218,1724989839576,-500.0,0.00026064,5]
[336637219,1724989839586,-500.0,0.00026064,5]
[336637220,1724989839598,-500.0,0.00026075,5]
[336637221,1724989839609,-500.0,0.00026075,5]
[336637222,1724989839622,-500.0,0.00026075,5]
[336637223,1724989839633,-517.16,0.00026075,5]
[336637224,1724989839644,-150.112233,0.000262,5]
[336637225,1724989839655,-500.0,0.00026338,5]
[336637226,1724989839668,-500.0,0.00026338,5]
[336637227,1724989839678,-500.0,0.00026338,5]
[336637228,1724989839688,-500.0,0.00026349,5]
[336637229,1724989839697,-500.0,0.00026349,5]
[336637230,1724989839706,-500.0,0.00026349,5]
[336637231,1724989839716,-517.16,0.00026349,5]
[336637232,1724989839728,-7458.94652043,0.0002649,2]
[336637233,1724989839739,-153.78,0.000266,31]
[336637234,1724989839749,-153.78,0.000266,31]
[336637235,1724989839758,-153.78,0.000266,31]
[336637236,1724989839768,-153.78,0.000266,31]
[336637237,1724989839777,-500.0,0.00026612,5]
[336637238,1724989839787,-500.0,0.00026612,5]
[336637239,1724989839796,-500.0,0.00026612,5]
[336637240,1724989839807,-500.0,0.00026623,5]
[336637241,1724989839817,-500.0,0.00026623,5]
[336637242,1724989839829,-614.82303818,0.00026623,5]
[336637243,1724989839839,-517.16,0.00026623,5]
[336637244,1724989839849,-500.0,0.00026772,2]
[336637245,1724989839860,-800.0,0.00026774,2]
[336637246,1724989839870,-150.112233,0.000268,6]
[336637247,1724989839880,-800.0,0.00026818,2]
[336637248,1724989839891,-500.0,0.00026856,2]
[336637249,1724989839901,-500.0,0.00026884,2]
[336637250,1724989840015,-500.0,0.00026886,5]
[336637252,1724989840030,-229.96801038,0.00026886,5]
[336637253,1724989840041,-500.0,0.00026886,5]
[336637254,1724989840051,-500.0,0.00026893,2]
[336637255,1724989840060,-500.0,0.00026897,5]
[336637256,1724989840070,-500.0,0.00026897,5]
[336637257,1724989840081,-517.16,0.00026897,5]
[336637258,1724989840093,-800.0,0.00026926,2]
[336637259,1724989840103,-500.0,0.00026952,2]
[336637260,1724989840113,-500.0,0.00026966,2]
[336637261,1724989840122,-800.0,0.00026968,2]
[336637262,1724989840131,-500.0,0.00027045,2]
[336637263,1724989840141,-500.0,0.00027061,2]
[336637264,1724989840150,-549.76505104,0.00027146,2]
[336637265,1724989840160,-500.0,0.0002716,5]
[336637266,1724989840169,-500.0,0.0002716,5]
[336637267,1724989840179,-500.0,0.00027165,2]
[336637268,1724989840188,-500.0,0.00027171,5]
[336637269,1724989840197,-500.0,0.00027171,5]
[336637270,1724989840208,-517.16,0.00027171,5]
[336637271,1724989840217,-500.0,0.00027198,2]
[336637272,1724989840226,-500.0,0.00027203,2]
[336637273,1724989840236,-800.0,0.00027229,2]
[336637274,1724989840245,-500.0,0.00027235,2]
[336637275,1724989840254,-500.0,0.00027235,2]
[336637276,1724989840264,-263.36729332,0.00027247,2]
[336637277,1724989840273,-500.0,0.00027252,2]
[336637278,1724989840281,-500.0,0.00027266,2]
[336637279,1724989840292,-500.0,0.00027267,2]
[336637280,1724989840304,-500.0,0.00027276,2]
[336637281,1724989840314,-800.0,0.00027324,2]
[336637282,1724989840323,-500.0,0.00027351,2]
[336637283,1724989840334,-690.2828,0.00027383,30]
[336637284,1724989840343,-500.0,0.00027395,2]
[336637285,1724989840354,-500.0,0.00027397,5]
[336637286,1724989840365,-500.0,0.00027397,5]
[336637287,1724989840376,-500.0,0.00027397,5]
[336637288,1724989840388,-500.0,0.00027397,5]
[336637289,1724989840400,-500.0,0.00027397,5]
[336637290,1724989840411,-500.0,0.00027397,5]
[336637291,1724989840422,-500.0,0.00027397,5]
[336637293,1724989840431,-500.0,0.00027397,5]
[336637294,1724989840443,-500.0,0.00027397,5]
[336637295,1724989840453,-207.92030653,0.00027397,2]
[336637297,1724989840464,-500.39347045,0.00027397,2]
[336637298,1724989840476,-150.112233,0.000274,7]
[336637299,1724989840487,-500.0,0.00027434,5]
[336637300,1724989840499,-638.7533894,0.00027434,5]
[336637301,1724989840510,-500.0,0.00027435,5]
[336637302,1724989840520,-800.0,0.00027437,2]
[336637303,1724989840531,-500.0,0.00027445,5]
[336637304,1724989840542,-500.0,0.00027445,5]
[336637306,1724989840553,-517.16,0.00027445,5]
[336637307,1724989840562,-500.0,0.00027446,2]
[336637308,1724989840572,-504.09584578,0.00027487,2]
[336637310,1724989840583,-43858.52172346,0.000275,2]
[336637311,1724989840595,-500.0,0.00027519,2]
[336637313,1724989840606,-500.0,0.00027542,2]
[336637315,1724989840617,-800.0,0.00027577,2]
[336637316,1724989840628,-500.0,0.00027578,2]
[336637317,1724989840639,-500.0,0.00027582,2]
[336637318,1724989840650,-500.0,0.0002759,2]
[336637319,1724989840662,-500.0,0.00027605,2]
[336637320,1724989840673,-500.0,0.00027627,2]
[336637321,1724989840683,-500.0,0.00027633,2]
[336637322,1724989840693,-800.0,0.00027658,2]
[336637323,1724989840704,-500.0,0.00027673,4]
[336637324,1724989840714,-21330.84,0.000277,14]
[336637325,1724989840724,-500.0,0.00027708,5]
[336637326,1724989840736,-500.0,0.00027709,5]
[336637327,1724989840746,-500.0,0.00027719,5]
[336637328,1724989840757,-607.19106599,0.00027719,5]
[336637329,1724989840769,-517.16,0.00027719,5]
[336637330,1724989840781,-500.0,0.00027734,2]
[336637331,1724989840791,-500.0,0.00027744,2]
[336637332,1724989840802,-800.0,0.00027801,2]
[336637333,1724989840812,-500.0,0.00027814,2]
[336637334,1724989840824,-500.0,0.00027816,2]
[336637335,1724989840835,-500.0,0.00027882,2]
[336637336,1724989840844,-500.0,0.00027901,2]
[336637337,1724989840856,-500.0,0.00027904,2]
[336637338,1724989840867,-500.0,0.00027911,2]
[336637339,1724989840883,-800.0,0.00027912,2]
[336637340,1724989840894,-500.0,0.00027918,2]
[336637341,1724989840904,-500.0,0.00027958,2]
[336637342,1724989840917,-500.0,0.0002796,2]
[336637343,1724989840926,-800.0,0.00027976,2]
[336637344,1724989840939,-500.0,0.00027982,5]
[336637345,1724989840950,-500.0,0.00027983,5]
[336637346,1724989840960,-501.1460086,0.00027985,2]
[336637347,1724989840970,-31631.03499678,0.0002799,2]
[336637348,1724989840980,-296.990297,0.0002799,7]
[336637349,1724989840989,-245.091972,0.0002799,2]
[336637350,1724989840999,-989.36549,0.0002799,7]
[336637351,1724989841010,-989.36549,0.0002799,7]
[336637352,1724989841022,-151.0,0.0002799,7]
[336637353,1724989841032,-151.0,0.0002799,7]
[336637354,1724989841042,-198.415403,0.0002799,7]
[336637355,1724989841052,-151.0,0.0002799,7]
[336637356,1724989841062,-151.0,0.0002799,7]
[336637357,1724989841072,-151.0,0.0002799,7]
[336637358,1724989841081,-151.0,0.0002799,7]
[336637359,1724989841091,-151.0,0.0002799,7]
[336637360,1724989841101,-151.616943,0.0002799,7]
[336637361,1724989841110,-243.27827266,0.00027993,5]
[336637362,1724989841120,-517.16,0.00027993,5]
[336637363,1724989841130,-800.0,0.00027994,2]
[336637364,1724989841139,-409.0,0.00028,120]
[336637365,1724989841149,-150.112233,0.00028,7]
[336637366,1724989841161,-800.0,0.00028003,2]
[336637367,1724989841171,-500.0,0.0002803,2]
[336637368,1724989841182,-800.0,0.00028044,2]
[336637369,1724989841193,-500.0,0.00028073,2]
[336637370,1724989841205,-151.0,0.00028085,7]
[336637371,1724989841217,-151.0,0.00028085,7]
[336637372,1724989841228,-151.0,0.00028085,7]
[336637373,1724989841239,-151.0,0.00028085,7]
[336637374,1724989841251,-151.0,0.00028085,7]
[336637375,1724989841261,-151.0,0.00028085,7]
[336637376,1724989841271,-151.0,0.00028085,7]
[336637377,1724989841280,-151.0,0.00028085,7]
[336637378,1724989841290,-151.0,0.00028085,7]
[336637379,1724989841300,-151.0,0.00028085,7]
[336637380,1724989841312,-151.0,0.00028085,7]
[336637381,1724989841322,-800.0,0.00028091,2]
[336637382,1724989841337,-800.0,0.00028119,2]
[336637383,1724989841348,-800.0,0.0002813,2]
[336637384,1724989841359,-500.0,0.00028142,2]
[336637385,1724989841369,-800.0,0.00028144,2]
[336637386,1724989841380,-500.0,0.00028168,2]
[336637387,1724989841392,-500.0,0.00028168,2]
[336637388,1724989841403,-800.0,0.00028171,2]
[336637389,1724989841413,-151.44745,0.00028181,7]
[336637390,1724989841423,-151.559296,0.00028181,7]
[336637391,1724989841433,-501.00827135,0.00028201,2]
[336637392,1724989841442,-1000.0,0.00028221,4]
[336637393,1724989841452,-500.0,0.00028229,2]
[336637394,1724989841462,-500.0,0.00028256,5]
[336637395,1724989841472,-500.0,0.00028257,5]
[336637396,1724989841483,-517.16,0.00028267,5]
[336637397,1724989841492,-503.15110239,0.0002827,2]
[336637398,1724989841502,-800.0,0.00028341,2]
[336637399,1724989841513,-151.452974,0.00028345,7]
[336637400,1724989841525,-151.0,0.00028345,7]
[336637401,1724989841537,-151.535513,0.00028345,7]
[336637402,1724989841550,-151.0,0.00028345,7]
[336637403,1724989841562,-151.86212,0.00028345,7]
[336637404,1724989841574,-151.0,0.00028345,7]
[336637405,1724989841589,-800.0,0.00028356,2]
[336637406,1724989841602,-500.0,0.00028362,2]
[336637407,1724989841613,-500.0,0.00028366,2]
[336637408,1724989841623,-500.0,0.00028374,2]
[336637409,1724989841634,-500.0,0.00028411,2]
[336637410,1724989841647,-500.0,0.0002844,2]
[336637411,1724989841658,-500.0,0.00028465,2]
[336637412,1724989841670,-800.0,0.00028466,2]
[336637413,1724989841681,-500.0,0.00028488,2]
[336637414,1724989841693,-165.6752191,0.00028493,2]
[336637415,1724989841706,-860.01316705,0.00028507,2]
[336637416,1724989841718,-500.0,0.00028513,2]
[336637417,1724989841730,-500.0,0.0002853,5]
[336637418,1724989841743,-500.0,0.00028531,5]
[336637419,1724989841756,-500.0,0.00028533,2]
[336637420,1724989841769,-750.37815561,0.00028534,2]
[336637421,1724989841782,-800.0,0.00028535,2]
[336637422,1724989841795,-517.16,0.00028541,5]
[336637423,1724989841808,-800.0,0.00028555,2]
[336637424,1724989841821,-150.112233,0.000286,8]
[336637425,1724989841835,-500.0,0.00028606,2]
[336637426,1724989841847,-500.0,0.00028606,2]
[336637427,1724989841858,-500.0,0.00028618,2]
[336637428,1724989841868,-500.0,0.00028642,2]
[336637429,1724989841878,-500.0,0.00028643,2]
[336637430,1724989841889,-500.0,0.00028647,2]
[336637431,1724989841899,-722.68576521,0.0002867,2]
[336637432,1724989841911,-502.76233625,0.00028671,2]
[336637433,1724989841921,-778.52174994,0.00028691,2]
[336637434,1724989841932,-476.31,0.000287,14]
[336637435,1724989841943,-1109.53,0.000287,14]
[336637436,1724989841954,-691.66,0.000287,7]
[336637437,1724989841964,-1296.23265929,0.00028759,2]
[336637438,1724989841975,-793.10488626,0.00028767,120]
[336637439,1724989841986,-500.0,0.00028804,5]
[336637440,1724989841999,-609.9281248,0.00028805,5]
[336637441,1724989842012,-517.16,0.00028815,5]
[336637442,1724989842024,-500.0,0.00028839,2]
[336637443,1724989842034,-852.68118146,0.00029,2]
[336637444,1724989842045,-500.0,0.00029078,5]
[336637445,1724989842055,-517.16,0.00029089,5]
[336637446,1724989842065,-1500.0,0.00029119,4]
[336637447,1724989842076,-150.112233,0.000292,10]
[336637448,1724989842089,-500.0,0.00029352,5]
[336637449,1724989842100,-517.16,0.00029363,5]
[336637450,1724989842111,-500.0,0.00029524,2]
[336637451,1724989842123,-500.0,0.00029626,5]
[336637452,1724989842134,-517.16,0.00029636,5]
[336637453,1724989842145,-150.112233,0.000298,8]
[336637454,1724989842156,-150.112233,0.000299,6]
[336637455,1724989842168,-150.112233,0.000299,10]
[336637456,1724989842179,-500.0,0.000299,5]
[336637457,1724989842190,-517.16,0.0002991,5]
[336637458,1724989842200,-400.0,0.0003,120]
[336637459,1724989842211,-1076.11250587,0.0003,7]
[336637460,1724989842223,-712.78604361,0.0003,15]
[336637461,1724989842236,-217.93081472,0.0003,120]
[336637462,1724989842248,-204.49079461,0.0003,30]
[336637463,1724989842260,-450.0,0.0003,120]
[336637464,1724989842273,-1008.40744986,0.0003,7]
[336637465,1724989842285,-300.00075164,0.0003,7]
[336637466,1724989842297,-151.0,0.0003,120]
[336637467,1724989842307,-151.0,0.0003,120]
[336637468,1724989842317,-227.0,0.0003,2]
[336637469,1724989842329,-271.72460976,0.0003,2]
[336637470,1724989842339,-500.0,0.00030062,2]
[336637471,1724989842349,-368.0,0.00030137,2]
[336637472,1724989842359,-400.0,0.00030137,60]
[336637473,1724989842369,-362.1732866,0.00030174,5]
[336637474,1724989842381,-517.16,0.00030184,5]
[336637475,1724989842393,-2000.0,0.00030224,4]
[336637476,1724989842404,-150.112233,0.000304,6]
[336637477,1724989842416,-153.78,0.000304,31]
[336637478,1724989842428,-153.78,0.000304,31]
[336637479,1724989842439,-153.78,0.000304,31]
[336637480,1724989842449,-153.78,0.000304,31]
[336637481,1724989842459,-153.78,0.000304,31]
[336637482,1724989842469,-153.78,0.000304,31]
[336637483,1724989842481,-153.78,0.000304,31]
[336637484,1724989842493,-153.78,0.000304,31]
[336637485,1724989842504,-517.16,0.00030458,5]
[336637486,1724989842515,-150.112233,0.000305,7]
[336637487,1724989842526,-150.112233,0.000305,7]
[336637488,1724989842538,-517.16,0.00030732,5]
[336637489,1724989842549,-500.0,0.00030858,2]
[336637490,1724989842561,-151.0,0.00030904,120]
[336637491,1724989842573,-21330.84,0.00031,14]
[336637492,1724989842585,-517.16,0.00031006,5]
[336637493,1724989842595,-151.0,0.0003101,7]
[336637494,1724989842606,-153.562767,0.0003101,7]
[336637495,1724989842616,-151.0,0.0003101,7]
[336637496,1724989842627,-151.0,0.0003101,7]
[336637497,1724989842638,-151.0,0.0003101,7]
[336637498,1724989842648,-151.0,0.0003101,7]
[336637499,1724989842659,-151.0,0.0003101,7]
[336637500,1724989842669,-151.0,0.0003101,7]
[336637501,1724989842680,-153.106393,0.0003101,7]
[336637502,1724989842691,-151.0,0.0003101,7]
[336637503,1724989842702,-151.0,0.0003101,7]
[336637504,1724989842712,-160.0,0.00031021,10]
[336637505,1724989842723,-151.0,0.00031022,7]
[336637506,1724989842734,-152.352409,0.00031022,7]
[336637507,1724989842745,-151.0,0.00031022,7]
[336637508,1724989842756,-151.0,0.00031022,7]
[336637509,1724989842767,-151.0,0.00031022,7]
[336637510,1724989842777,-152.632223,0.00031022,7]
[336637511,1724989842789,-151.0,0.00031022,7]
[336637512,1724989842799,-151.0,0.00031022,7]
[336637513,1724989842809,-151.0,0.00031022,7]
[336637514,1724989842820,-151.0,0.00031022,7]
[336637515,1724989842831,-151.0,0.00031022,7]
[336637516,1724989842841,-151.0,0.00031022,7]
[336637517,1724989842851,-151.0,0.00031022,7]
[336637518,1724989842862,-151.0,0.00031022,7]
[336637519,1724989842872,-151.0,0.00031022,7]
[336637520,1724989842883,-310.0,0.00031022,30]
[336637521,1724989842896,-310.0,0.00031022,30]
[336637522,1724989842911,-310.0,0.00031022,30]
[336637523,1724989842921,-310.0,0.00031022,30]
[336637524,1724989842932,-310.0,0.00031022,30]
[336637525,1724989842944,-310.0,0.00031022,30]
[336637526,1724989842955,-310.0,0.00031022,30]
[336637527,1724989842968,-310.0,0.00031022,30]
[336637528,1724989842979,-310.0,0.00031022,30]
[336637529,1724989842991,-310.0,0.00031022,30]
[336637530,1724989843003,-310.0,0.00031022,30]
[336637531,1724989843018,-310.0,0.00031022,30]
[336637532,1724989843028,-310.0,0.00031022,30]
[336637533,1724989843039,-310.0,0.00031022,30]
[336637534,1724989843051,-172.444347,0.00031022,30]
[336637535,1724989843064,-151.0,0.00031022,7]
[336637536,1724989843075,-151.0,0.00031022,7]
[336637537,1724989843089,-151.0,0.00031022,7]
[336637538,1724989843099,-151.0,0.00031022,7]
[336637539,1724989843110,-989.36549,0.00031022,7]
[336637540,1724989843121,-989.36549,0.00031022,7]
[336637549,1724989843274,-193.980321,0.00031022,7]
[336637550,1724989843284,-193.980321,0.00031022,7]
[336637551,1724989843295,-151.0,0.00031022,7]
[336637552,1724989843304,-151.0,0.00031022,7]
[336637554,1724989843314,-196.581084,0.00031022,7]
[336637555,1724989843324,-196.581084,0.00031022,7]
[336637556,1724989843334,-151.0,0.00031022,7]
[336637557,1724989843344,-152.168696,0.00031022,7]
[336637558,1724989843353,-172.828454,0.00031022,7]
[336637560,1724989843363,-151.0,0.00031022,7]
[336637561,1724989843373,-195.16009,0.00031022,7]
[336637563,1724989843383,-151.0,0.00031022,7]
[336637565,1724989843393,-220.036522,0.00031022,7]
[336637567,1724989843404,-151.0,0.00031022,7]
[336637569,1724989843414,-160.0,0.00031022,10]
[336637570,1724989843425,-151.0,0.00031023,7]
[336637571,1724989843435,-151.30834,0.00031023,7]
[336637572,1724989843445,-151.0,0.00031023,7]
[336637573,1724989843455,-151.0,0.00031023,7]
[336637574,1724989843464,-171.79295816,0.00031023,120]
[336637575,1724989843474,-1000.0,0.00031023,120]
[336637576,1724989843483,-200.0,0.00031023,30]
[336637577,1724989843493,-300.0,0.00031023,30]
[336637578,1724989843502,-150.0,0.00031023,14]
[336637579,1724989843512,-150.0,0.00031023,14]
[336637580,1724989843521,-200.0,0.00031023,14]
[336637581,1724989843531,-200.99337458,0.00031023,120]
[336637582,1724989843540,-23207.41742921,0.00031023,7]
[336637583,1724989843550,-235.47572121,0.00031023,120]
[336637584,1724989843560,-88512.12300229,0.00031023,2]
[336637585,1724989843627,-441.04764933,0.00031023,2]
[336637586,1724989843638,-279.79278161,0.00031023,30]
[336637587,1724989843660,-380.0,0.00024658,2]
[336637588,1724989843670,-27.48953913,0.0002799,7]
[336637627,1724990149512,-212.655126,0.00014247,2]
[336637628,1724990152005,582.0,0.00025,120]
[336637630,1724990173916,-323.219807,0.0001863,2]
[336637631,1724990173945,-600.0,0.00018848,2]
[336637632,1724990173973,-600.0,0.00018868,2]
[336637633,1724990174001,-600.0,0.00018868,2]
[336637634,1724990174028,-600.0,0.00018868,2]
[336637635,1724990174054,-600.0,0.00018868,2]
[336637636,1724990174081,-600.0,0.00018868,2]
[336637637,1724990174106,-600.0,0.00018868,2]
[336637638,1724990174136,-600.0,0.00018868,2]
[336637639,1724990174162,-600.0,0.00018868,2]
[336637641,1724990181297,-600.0,0.00019134,2]
[336637677,1724990574696,-191.2868859,0.00020068,2]
[336637678,1724990574729,-3000.0,0.00021,2]
[336637679,1724990574757,-956.62690954,0.00021,2]
[336637680,1724990580516,-3000.0,0.0002101,2]
[336637681,1724990580545,-3000.0,0.0002102,2]
[336637682,1724990580572,-3000.0,0.0002103,2]